Cogmind - Beta 17 @@@ ROGUE MODE // 2026.06.27 @ 00:18:16 // Winter2019/RPGLIKE Player: AngelSpirit Result: Self-destructed Performance ------------- Evolutions (2) 1000 Regions Visited (7) 1400 Robots Destroyed (148) 740 Value Destroyed (3349) 3349 Prototype IDs (40) 800 Alien Tech Used (0) 0 Bonus (692) 692 TOTAL SCORE: 7981 Bonus ------- High Alert Combat Kills 332 Follower Combat Kills 60 Aligned with FarCom 300 Cogmind --------- Core Integrity 1416/1500 Matter 252/300 Energy 270/270 System Corruption 0% Temperature Cool (0) Movement Walking (100) Location -8/Materials Parts ------- > --- POWER (2) -------- Cold Fusion Reactor Light Neutrino Core > --- PROPULSION (2) --- Enhanced Biometal Leg Enhanced Biometal Leg > --- UTILITY (4) ------ Improved Signal Interpreter Experimental Core Analyzer Advanced Weapon Cycler Cloak of Protection > --- WEAPON (4) ------- Autogun Autogun 8R-AWN's Boregun 8R-AWN's Boregun > --- INVENTORY (7) ---- Experimental Energy Well (600) Thermal Barrier Latent Energy Streamer Improved Grenade Launcher Plasma Cutter Deploy-a-Sentry Peak State ------------ > --- POWER ------------ Cold Fusion Reactor Light Neutrino Core > --- PROPULSION ------- Enhanced Biometal Leg Enhanced Biometal Leg > --- UTILITY ---------- Improved Signal Interpreter Experimental Core Analyzer Advanced Weapon Cycler Cloak of Protection > --- WEAPON ----------- Autogun Autogun 8R-AWN's Boregun 8R-AWN's Boregun > --- INVENTORY -------- Experimental Energy Well Thermal Barrier Latent Energy Streamer Improved Grenade Launcher Plasma Cutter Deploy-a-Sentry [Rating: 88] Favorites ----------- Power Cooled Ion Engine Engine Cooled Ion Engine Power Core Light Nuclear Core Reactor Cold Fusion Reactor Propulsion Armored Wheel Treads Improved Treads Leg Enhanced Biometal Leg Wheel Armored Wheel Utility Seismic Detector Device Seismic Detector Storage Experimental Energy Well Processor Experimental Core Analyzer Hackware Hacking Suite Protection Hardened Light Armor Plating Weapon Autogun Energy Gun Improved EM Shotgun Energy Cannon Advanced Beam Cannon Ballistic Gun Autogun Ballistic Cannon Light Cannon Launcher EMP Blaster Special Melee Weapon Datajack Build | -11 -10 -10 -9 -9 -9 -8 -8 ------- Run | Yrd Mat Min Mat Min Exi Min Mat Slots Evolved 8 | 1 1 1 3 . . 1 1 Power 1 | . . . 1 . . . . Propulsion 1 | . . . 1 . . . . Utility 3 | . 1 . . . . 1 1 Weapon 3 | 1 . 1 1 . . . . Parts Attached 52 | 5 5 3 18 1 11 6 3 Power 7 | 1 1 . 3 . 2 . . Engine 4 | 1 . . 3 . . . . Core 2 | . 1 . . . 1 . . Reactor 1 | . . . . . 1 . . Propulsion 8 | 1 . . 2 1 2 2 . Treads 1 | . . . 1 . . . . Leg 4 | . . . . . 2 2 . Wheel 3 | 1 . . 1 1 . . . Hover . | . . . . . . . . Flight . | . . . . . . . . Utility 17 | 1 . 1 3 . 5 4 3 Device 9 | 1 . . 1 . 3 3 1 Storage 1 | . . . . . . 1 . Processor 4 | . . . . . 2 . 2 Hackware 1 | . . 1 . . . . . Protection 2 | . . . 2 . . . . Artifact . | . . . . . . . . Weapon 20 | 2 4 2 10 . 2 . . Energy Gun 5 | 1 2 . 2 . . . . Energy Cannon 1 | . . . 1 . . . . Ballistic Gun 9 | 1 . 1 5 . 2 . . Ballistic Cannon 1 | . 1 . . . . . . Launcher 3 | . . 1 2 . . . . Special Weapon . | . . . . . . . . Impact Weapon . | . . . . . . . . Slashing Weapon . | . . . . . . . . Piercing Weapon . | . . . . . . . . Special Melee Weapon 1 | . 1 . . . . . . Unidentified Prototypes 16 | . 1 . 5 . 6 4 . Corrupted Parts 1 | . . 1 . . . . . System Corruption 2 | . . 2 . . . . . Parts Lost . | . . . . . . . . Power . | . . . . . . . . Propulsion . | . . . . . . . . Utility . | . . . . . . . . Weapon . | . . . . . . . . Highest Loss Streak . | . . . . . . . . To Critical Strikes . | . . . . . . . . Average Backups 2 | . . 2 2 3 2 4 5 Power . | . . . . . . . . Propulsion . | . . . . . . . . Utility 1 | . . . 1 1 1 3 2 Weapon 1 | . . 2 1 2 . 1 2 Tool/Special . | . . . . . . . . Unused Backups 16 | . 1 . 2 . 5 3 5 Power 2 | . . . . . 2 . . Propulsion . | . . . . . . . . Utility 8 | . 1 . 1 . 3 3 . Weapon 5 | . . . 1 . . . 4 Tool/Special 1 | . . . . . . . 1 Average Slot Usage (%) 95 | . 87 92 98 100 99 94 99 Engine 8 | . 2 . 13 20 16 . . Core 6 | . 14 16 2 . 1 9 8 Reactor 1 | . . . . . 1 9 8 Treads 1 | . . . 4 3 . . . Leg 2 | . . . . . . 14 17 Wheel 13 | . 17 16 11 16 19 4 . Device 12 | . 17 16 11 10 9 7 10 Processor 3 | . . . . . 4 9 17 Hackware 3 | . . 9 10 . . . . Protection 2 | . . . . 10 5 . . Energy Gun 13 | . 23 33 15 6 5 . . Ballistic Gun 22 | . 8 . 26 26 34 38 35 Peak Build Rating 88 | 5 10 14 25 24 63 84 88 Average Rating 29 | 3 7 11 20 23 37 72 81 On Entrance 28 | . 5 10 14 24 24 63 84 Avg Prop Armor Cover (%) 6 | . . . 6 6 . . . Naked Turns . | . . . . . . . . Heaviest Build 47 | 8 12 14 35 37 39 47 47 Greatest Support 65 | 10 10 15 17 29 65 65 65 Greatest Overweight (x) 2 | . 1 1 2 2 1 1 . Average Overweight (x) . | . . . . 1 . . . Largest Inventory Capacity 7 | 3 4 5 6 6 6 6 7 Average Capacity 5 | 3 3 4 5 6 6 6 6 Most Carried 7 | . 4 5 6 6 6 6 7 Average Carried 4 | . 3 4 5 6 4 5 6 Final Capacity 7 | 3 4 5 6 6 6 6 7 Final Carried 6 | . 4 4 6 6 6 4 6 Class Distribution -------------------- 32% | Mutant 25% | Scavenger-Gunner 21% | Tank 13% | Hacker-Tank 7% | Hacker-Gunner Dominant Class ---------------- Mutant | -10/Materials Mutant | -10/Mines Hacker-Tank | -9/Materials Tank | -9/Mines Scavenger-Gunner | -9/Exiles Scavenger-Gunner | -8/Mines Scavenger-Gunner | -8/Materials Resources | -11 -10 -10 -9 -9 -9 -8 -8 ----------- Run | Yrd Mat Min Mat Min Exi Min Mat Matter Collected 4417 | 213 374 117 1239 139 1425 331 579 Remotely . | . . . . . . . . Salvage Created 4739 | 17 676 152 1820 84 653 289 1048 Parts 416 | 4 70 9 150 10 82 22 69 Haulers Intercepted 11 | . 2 . 6 . . . 3 Recyclers Shooed . | . . . . . . . . Parts Field Recycled . | . . . . . . . . Retrieved Matter . | . . . . . . . . Parts Self-Destructed . | . . . . . . . . Prevented . | . . . . . . . . Parts Restored . | . . . . . . . . Kills | -11 -10 -10 -9 -9 -9 -8 -8 ------- Run | Yrd Mat Min Mat Min Exi Min Mat Combat Hostiles Destroyed 102 | . 21 7 42 5 7 5 15 Guns 91 | . 18 4 37 5 7 5 15 AOE 11 | . 3 3 5 . . . . Classes Destroyed 16 | 1 7 . 3 1 3 1 . Worker 8 | . 4 . 2 1 . . 1 Builder 6 | . 1 . 2 . . . 3 Tunneler 2 | 1 . . 1 . . . . Hauler 11 | . 2 . 6 . . . 3 Operator 5 | . 3 . 2 . . . . Turret 1 | . . . . . 1 . . Watcher 8 | . 3 . 4 . . . 1 Swarmer 30 | . 6 5 13 3 . 3 . Grunt 47 | . 15 2 19 . . . 11 Duelist 1 | . . . 1 . . . . Protector 1 | . . . 1 . . . . Sentry 13 | . . . 9 . . . 4 Demolisher 2 | . . . . 2 . . . Hunter 1 | . . . . . . 1 . Zionite 8 | . . . . . 8 . . Assembled 6 | . . . . . 6 . . Best Kill Streak 11 | 1 6 3 7 4 11 3 6 Combat Bots Only 6 | . 4 3 6 3 6 3 4 Max Kills in Single Turn 5 | 1 3 3 5 2 1 1 2 Gunslinging 1 | . . . 1 . . . 1 Exploded 4 | . 3 3 4 . . . . Melee . | . . . . . . . . Uniques/NPCs Destroyed 5 | . . . . . 4 1 . 8R-AWN (-9/Exiles) EX-BIN (-9/Exiles) EX-HEX (-9/Exiles) EX-DEC (-9/Exiles) NK-0LA (-8/Mines) Combat | -11 -10 -10 -9 -9 -9 -8 -8 -------- Run | Yrd Mat Min Mat Min Exi Min Mat Hostile Shots Fired 393 | . 95 9 111 5 86 51 36 Missed 91 | . 14 2 28 2 14 18 13 Hits 302 | . 81 7 83 3 72 33 23 Melee 4 | . . . . . 4 . . Projectile 298 | . 81 7 83 3 68 33 23 AOE 1 | . . . . 1 . . . Critical Strikes 42 | . 1 1 1 . 38 . 1 Damage Taken 3611 | . 874 84 761 39 845 639 369 Core 2826 | . 709 70 599 29 618 510 291 Absorbed by Shields 528 | . . . 195 14 319 . . Redirected to Core 2342 | . 512 46 481 29 529 470 275 Ignored by Resistances 145 | . . . 39 2 91 11 2 Core Remaining (%) 83 | 100 . 95 . . . 54 . Volleys Fired 308 | 3 83 9 86 4 67 16 40 Largest 4 | 2 2 2 4 4 4 4 4 Hottest 156 | 70 110 110 156 114 114 106 106 Shots Fired 835 | 6 161 17 274 18 213 54 92 Gun 829 | 6 160 16 270 18 213 54 92 Cannon 1 | . 1 . . . . . . Launcher 5 | . . 1 4 . . . . Special . | . . . . . . . . Kinetic 613 | 3 74 . 203 14 173 54 92 Thermal 106 | 3 78 8 17 . . . . Explosive 1 | . . 1 . . . . . Electromagnetic 115 | . 9 8 54 4 40 . . Robot Hit Streak 43 | 1 9 9 14 5 43 10 12 Robot Miss Streak 7 | 1 3 4 7 1 2 3 4 Penetration Max 1 | . . . . . 1 . 1 Secondary Targets 19 | . 1 . 10 1 3 1 3 Max Gunslinging Chain 1 | . 1 . 1 1 1 1 1 Shots Hit Robots 605 | 3 109 14 184 9 192 34 60 Core Hits 286 | 2 56 17 102 7 51 14 37 Critical Kills 26 | . . . 1 . 7 2 16 Critical Parts Destroyed 37 | . 1 . 2 . 14 4 16 Critical Strikes 71 | 1 6 . 3 . 22 7 32 Burn 6 | 1 5 . . . . . . Destroy 65 | . 1 . 3 . 22 7 32 Melee Attacks 1 | . 1 . . . . . . Impact . | . . . . . . . . Slashing . | . . . . . . . . Piercing . | . . . . . . . . Sneak Attacks 1 | . 1 . . . . . . Combat Hostiles . | . . . . . . . . Follow-up Attacks . | . . . . . . . . Damage Inflicted 9558 | 37 1506 359 3403 134 2490 479 1150 Guns 8588 | 37 1387 203 2712 134 2490 479 1146 Cannons 18 | . 18 . . . . . . Explosions 948 | . 101 156 691 . . . . Melee . | . . . . . . . . Ramming 4 | . . . . . . . 4 Kinetic 6572 | . 593 . 1917 70 2367 479 1146 Thermal 1335 | 37 777 73 448 . . . . Explosive 156 | . . 156 . . . . . Electromagnetic 1491 | . 136 130 1038 64 123 . . Impact . | . . . . . . . . Slashing . | . . . . . . . . Piercing . | . . . . . . . . Highest Corruption 9 | . 4 6 3 3 3 9 . Average Corruption 3 | . 3 5 3 3 3 8 . Corruption Purged . | . . . . . . . . Corruption Blocked . | . . . . . . . . Effects 119 | . 20 14 30 17 23 15 . Message Errors 31 | . 4 4 11 7 2 3 . Matter Fused 27 | . 6 5 3 2 9 2 . Heat Flow Errors 9 | . 1 2 2 4 . . . Energy Discharges 22 | . 4 1 5 2 5 5 . Parts Rejected 1 | . . 1 . . . . . Data Loss (minor) 8 | . 2 . 3 . 2 1 . Data Loss (major) 7 | . 1 1 1 . 4 . . Misfires 8 | . . . 3 2 1 2 . Alerts 2 | . 2 . . . . . . Weapon Failures 4 | . . . 2 . . 2 . Overload Shots . | . . . . . . . . Overflow Damage 28 | . . . 28 . . . . Projectiles . | . . . . . . . . Explosions 28 | . . . 28 . . . . Melee . | . . . . . . . . Knockbacks . | . . . . . . . . Impact . | . . . . . . . . Kinetic . | . . . . . . . . Secondary . | . . . . . . . . Self-Inflicted Damage 59 | . . . 59 . . . . Shots 2 | . . . 2 . . . . Rammed . | . . . . . . . . Targets Rammed 1 | . . . . . . . 1 Kicked 1 | . . . . . . . 1 Crushed . | . . . . . . . . Highest Temperature 200 | . 149 184 171 200 17 73 6 Average Temperature 27 | . 39 53 19 81 10 29 3 Received Heat Transfer 903 | . 396 54 246 . . . 207 Siege Activations . | . . . . . . . . Martial Activations . | . . . . . . . . Shielding Activations . | . . . . . . . . Robots Disrupted . | . . . . . . . . Combat Hostiles . | . . . . . . . . Robots Corrupted . | . . . . . . . . Combat Hostiles . | . . . . . . . . Parts Fried 3 | . . . 3 . . . . Impact Corruptions . | . . . . . . . . Robots Melted . | . . . . . . . . Combat Hostiles . | . . . . . . . . Parts Melted 4 | . 2 . 2 . . . . Heat Transferred 3251 | 185 2384 100 582 . . . . Parts Sabotaged . | . . . . . . . . Parts Stolen . | . . . . . . . . Parts Stripped . | . . . . . . . . Power Chain Reactions 8 | . 1 1 6 . . . . Alert | -11 -10 -10 -9 -9 -9 -8 -8 ------- Run | Yrd Mat Min Mat Min Exi Min Mat Maximum Alert Level 3 | . 1 . 3 1 . . 1 Low Security (%) 37 | 100 32 100 6 . . 100 64 Level 1 47 | . 67 . 40 100 . . 35 Level 2 5 | . . . 21 . . . . Level 3 8 | . . . 30 . . . . Level 4 . | . . . . . . . . Level 5 . | . . . . . . . . High Security . | . . . . . . . . Max Security . | . . . . . . . . Peak Influence 1027 | 5 299 171 1027 387 . 62 307 Initial 387 | . . 81 57 387 . . . Average 263 | 2 196 57 540 280 . 21 127 Influence Increases 3250 | 5 690 279 1456 140 . 135 545 Destroy 0b10 Robot/C 1980 | . 420 160 920 100 . 80 300 Destroy 0b10 Robot/NC 210 | 5 65 . 95 5 . . 40 Destroy Leader 498 | . 110 30 230 20 . 20 88 Allied During Kill 121 | . . 37 84 . . . . Successful Hack 41 | . 14 . 18 . . . 9 Select Force Hacks 150 | . 60 . 60 . . . 30 Disable Machine 135 | . . 45 30 . . 30 30 Destroy Structure 55 | . 6 7 19 . . 5 18 Partial Spotted 15 | . . . . 15 . . . Lose Combat Pursuer 45 | . 15 . . . . . 30 Influence Decreases 2978 | 5 480 342 608 934 201 135 273 Entered New Map 1028 | . . 129 90 608 201 . . Time Decay 1950 | 5 480 213 518 326 . 135 273 Squads Dispatched 17 | . 7 . 7 . . . 3 Investigation 9 | . 5 . 2 . . . 2 Extermination . | . . . . . . . . Reinforcement 7 | . 2 . 4 . . . 1 Assault 1 | . . . 1 . . . . Garrison . | . . . . . . . . Intercept . | . . . . . . . . Searches Triggered . | . . . . . . . . Construction Impeded . | . . . . . . . . Haulers Reinforced . | . . . . . . . . Active Scanning Responses . | . . . . . . . . Cargo Convoy Interrupts . | . . . . . . . . Stealth | -11 -10 -10 -9 -9 -9 -8 -8 --------- Run | Yrd Mat Min Mat Min Exi Min Mat Distress Signals 2 | . 1 . 1 . . . . Communications Jammed . | . . . . . . . . Distress Signals . | . . . . . . . . Times Spotted 134 | . 33 7 53 4 13 6 18 Peak Tracking Total 9 | . 5 3 5 1 9 3 5 Tactical Retreats 4 | . 1 . . . 1 . 2 Traps | -11 -10 -10 -9 -9 -9 -8 -8 ------- Run | Yrd Mat Min Mat Min Exi Min Mat Traps Triggered 5 | . 5 . . . . . . Indirectly . | . . . . . . . . Trap Hack Attempts . | . . . . . . . . Triggered . | . . . . . . . . Disarmed . | . . . . . . . . Reprogrammed . | . . . . . . . . Reused . | . . . . . . . . Traps Extracted . | . . . . . . . . Installed . | . . . . . . . . Triggered . | . . . . . . . . Machines | -11 -10 -10 -9 -9 -9 -8 -8 ---------- Run | Yrd Mat Min Mat Min Exi Min Mat Machines Disabled 21 | . . 3 2 . 12 2 2 Max in Single Turn 2 | . . 2 1 . 2 1 1 Machines Repaired . | . . . . . . . . Machines Dismantled . | . . . . . . . . Machines Sabotaged . | . . . . . . . . Overloaded Fab Kills . | . . . . . . . . Hacking | -11 -10 -10 -9 -9 -9 -8 -8 --------- Run | Yrd Mat Min Mat Min Exi Min Mat Machines Accessed 25 | . 7 . 10 . 2 . 6 Terminals 16 | . 5 . 6 . . . 5 Fabricators . | . . . . . . . . Repair Stations . | . . . . . . . . Recycling Units 5 | . 2 . 2 . . . 1 Scanalyzers 2 | . . . 2 . . . . Garrison Access . | . . . . . . . . Total Hacks 72 | . 23 . 27 . 2 . 20 Successful 51 | . 15 . 21 . 2 . 13 Failed 21 | . 8 . 6 . . . 7 Catastrophic 3 | . 1 . 1 . . . 1 Database Lockouts . | . . . . . . . . Manual 47 | . 19 . 10 . 1 . 17 Terminals 50 | . 19 . 14 . . . 17 Fabricators . | . . . . . . . . Repair Stations . | . . . . . . . . Recycling Units 12 | . 4 . 5 . . . 3 Scanalyzers 8 | . . . 8 . . . . Garrison Access . | . . . . . . . . Terminal Hacks 15 | . 3 . 7 . 2 . 3 Record 1 | . . . . . 1 . . Part Schematic 1 | . 1 . . . . . . Robot Schematic 1 | . 1 . . . . . . Robot Analysis 1 | . . . 1 . . . . Branch Access Points 2 | . . . 1 . . . 1 Terminal Index 2 | . . . 1 . . . 1 Alert Level 1 | . . . . . . . 1 Locate Traps 4 | . 1 . 3 . . . . Hauler Manifests 1 | . . . 1 . . . . Proto ID Catalog 1 | . . . . . 1 . . Fabricator Hacks . | . . . . . . . . Repair Station Hacks . | . . . . . . . . Recycling Unit Hacks 3 | . 1 . 1 . . . 1 Retrieve Components 3 | . 1 . 1 . . . 1 Scanalyzer 5 | . . . 5 . . . . Retrieve Study 5 | . . . 5 . . . . Garrison Access Hacks . | . . . . . . . . Unauthorized Hacks 28 | . 11 . 8 . . . 9 Terminals 23 | . 9 . 6 . . . 8 Botnet 8 | . 3 . 1 . . . 4 Operators 1 | . 1 . . . . . . Skim 14 | . 5 . 5 . . . 4 Fabricators . | . . . . . . . . Repair Stations . | . . . . . . . . Recycling Units 5 | . 2 . 2 . . . 1 Tunnel 5 | . 2 . 2 . . . 1 Scanalyzers . | . . . . . . . . Garrison Access . | . . . . . . . . Data Cores Recovered 1 | . 1 . . . . . . Used . | . . . . . . . . Hacking Detections 17 | . 6 . 5 . . . 6 Full Trace Events 1 | . . . . . . . 1 Feedback Events . | . . . . . . . . Feedback Blocked . | . . . . . . . . Robot Schematics Acquired 1 | . 1 . . . . . . Robots Built . | . . . . . . . . Authchips . | . . . . . . . . Time . | . . . . . . . . Total Robot Build Rating . | . . . . . . . . Part Schematics Acquired 1 | . 1 . . . . . . Parts Built . | . . . . . . . . Authchips . | . . . . . . . . Time . | . . . . . . . . Total Part Build Rating . | . . . . . . . . Part Studies Acquired 5 | . . . 5 . . . . Parts Repaired . | . . . . . . . . Time . | . . . . . . . . Parts Recycled . | . . . . . . . . Recycled Matter . | . . . . . . . . Retrieved Matter . | . . . . . . . . Retrieved Components 28 | . 10 . 9 . . . 9 Parts Scanalyzed . | . . . . . . . . Part Schematics Acquired . | . . . . . . . . Parts Damaged . | . . . . . . . . Bothacking | -11 -10 -10 -9 -9 -9 -8 -8 ------------ Run | Yrd Mat Min Mat Min Exi Min Mat Used RIF Installer . | . . . . . . . . Robots Hacked 1 | . 1 . . . . . . Non-combat 1 | . 1 . . . . . . Combat . | . . . . . . . . Robot Hacks Applied 1 | . 1 . . . . . . check_alert 1 | . 1 . . . . . . Relay Couplers Released . | . . . . . . . . Fabnet Peak Effective % . | . . . . . . . . Robots Rewired . | . . . . . . . . Allies Hacked . | . . . . . . . . Hacks Repelled . | . . . . . . . . Allies | -11 -10 -10 -9 -9 -9 -8 -8 -------- Run | Yrd Mat Min Mat Min Exi Min Mat Total Allies 4 | . . 4 . . . . . Largest Group 4 | . . 4 3 . . . . Highest-Rated Group 71 | . . 71 40 . . . . Highest-Rated Ally 31 | . . 31 16 . . . . Total Orders 2 | . . . 2 . . . . STAY 1 | . . . 1 . . . . FOLLOW 1 | . . . 1 . . . . Ally Attacks 40 | . . 9 31 . . . . Total Damage 345 | . . 40 305 . . . . Kills 7 | . . 1 6 . . . . Allies Corrupted . | . . . . . . . . Allies Melted . | . . . . . . . . Intel | -11 -10 -10 -9 -9 -9 -8 -8 ------- Run | Yrd Mat Min Mat Min Exi Min Mat Active Infowar (turns) 3236 | 11 1394 564 469 . . 125 673 Seismic 2438 | 11 1394 564 469 . . . . Cloaking 798 | . . . . . . 125 673 Robot Analysis Total 1 | . . . 1 . . . . Derelict Logs Recovered 4 | . . 1 . 3 . . . Drone Launches . | . . . . . . . . Drone Recoveries . | . . . . . . . . Exploration | -11 -10 -10 -9 -9 -9 -8 -8 ------------- Run | Yrd Mat Min Mat Min Exi Min Mat Turns Passed 6208 | 40 1394 564 1421 723 1002 381 683 Spaces Moved 4858 | 31 1055 532 1063 649 727 322 479 Core 3 | 3 . . . . . . . Treads . | . . . . . . . . Legs 758 | . . . . . 4 275 479 Wheels 4097 | 28 1055 532 1063 649 723 47 . Hover . | . . . . . . . . Flight . | . . . . . . . . Fastest Speed 50 | 50 80 80 70 95 80 95 100 Average Speed 93 | 77 90 80 96 99 94 99 100 Slowest Speed 170 | 80 95 95 110 110 120 170 100 Overloaded Moves . | . . . . . . . . Propulsion Burnouts . | . . . . . . . . Robots Hopped . | . . . . . . . . Potential Cave-ins . | . . . . . . . . Cave-ins Triggered . | . . . . . . . . Exploration Rate (%) 74 | 3 98 96 89 97 90 78 44 Regions Visited 7 Branch Regions 4 Pre-discovered Areas 10 | . 4 . 3 1 1 . 1 Known Exits Taken 2 | . . 1 1 . . . . Unknown Exits Taken 5 | 1 1 . . 1 1 1 . Scrap Searched 3 | . . 1 . 1 . 1 . Spaces Dug 1 | . . . . . . . 1 Terrain Destroyed 60 | . 3 7 15 . 3 16 16 Melee . | . . . . . . . . Projectile 30 | . . . . . 3 12 15 AOE 25 | . 3 7 15 . . . . Terrain Rammed . | . . . . . . . . Walls Destroyed . | . . . . . . . . Machines Disabled . | . . . . . . . . Actions | -11 -10 -10 -9 -9 -9 -8 -8 --------- Run | Yrd Mat Min Mat Min Exi Min Mat Total 5926 | 38 1336 649 1292 712 929 362 608 Wait 395 | . 134 93 39 48 50 1 30 Move 4851 | 30 1054 531 1062 648 726 321 479 Hop . | . . . . . . . . Pick Up 50 | . 9 3 8 . 21 5 4 Fast Attach 50 | 5 4 1 20 1 9 5 5 Attach 7 | . 1 2 . . 1 2 1 Detach 2 | . 1 . . . . . 1 Swap 24 | . 2 4 5 8 4 . 1 Drop 80 | . 9 1 23 1 29 11 6 Fire 308 | 3 83 9 86 4 67 16 40 Melee 1 | . 1 . . . . . . Ram . | . . . . . . . . Kick 1 | . . . . . . . 1 Crush . | . . . . . . . . Escape Stasis . | . . . . . . . . Rewire . | . . . . . . . . Trap . | . . . . . . . . Miscellaneous 157 | . 38 5 49 2 22 1 40 Route ------- -11/Scrapyard -10/Materials (discovered 6 exits: *Mat x3 / [*Min x2] / [*Sub]) -10/Mines (discovered 2 exits: *Mat x2) -9/Materials (discovered 6 exits: *Mat x3 / *Min x2 / *Sto) -9/Mines (discovered 4 exits: *Mat x2 / *Exi / [*Zio]) -9/Exiles -8/Mines (discovered 2 exits: *Mat x2) -8/Materials (discovered 1 exit: *Fac) History --------- Turn | Location | Event 1 | -11/Scrapyard | Upgraded with Weapon slot (x1) 9 | -11/Scrapyard | Discovered new exit (range 15) 41 | -11/Scrapyard | Entered Materials 302 | -10/Materials | Build established: Mutant 369 | -10/Materials | Reached level 2 407 | -10/Materials | Upgraded with Utility slot (x1) 451 | -10/Materials | Discovered new exit (range 13) 684 | -10/Materials | Discovered new exit (range 12) 765 | -10/Materials | Discovered new exit (range 7) 847 | -10/Materials | Discovered new exit (range 14) 912 | -10/Materials | Discovered new exit (range 5) 947 | -10/Materials | Identified exit to Materials 1014 | -10/Materials | Learned 2 Storage zone layouts 1069 | -10/Materials | Learned location of Mines (-9) 1148 | -10/Materials | Learned 4 Recycling zone layouts 1172 | -10/Materials | Loaded intel: 2 recycling unit locations 1185 | -10/Materials | Learned Storage terminal intel 1277 | -10/Materials | Learned location of 1 exit from Recycling 1325 | -10/Materials | Learned location of Storage (-9) 1435 | -10/Materials | Entered Mines 1437 | -10/Mines | Reached level 3 1462 | -10/Mines | Assisted by bots powering up and referring to "LRC-V3" 1529 | -10/Mines | Received a Mining Laser from a helpful Derelict 1555 | -10/Mines | Discovered exit to Materials (range 8) 1660 | -10/Mines | Received a Rocket Launcher from a helpful Derelict 1815 | -10/Mines | Found a Scrap Suit stashed away for nefarious purposes 1916 | -10/Mines | Discovered exit to Materials (range 7) 1935 | -10/Mines | Reached level 4 1998 | -10/Mines | Upgraded with Weapon slot (x1) 1999 | -10/Mines | Entered Materials 1999 | -9/Materials | Accompanied by 3 allies 2000 | -9/Materials | Identified exit to Mines 2001 | -9/Materials | Reached level 5 2155 | -9/Materials | Identified exit to Storage 2192 | -9/Materials | Discovered new exit (range 8) 2292 | -9/Materials | Build established: Hacker-Gunner 2309 | -9/Materials | Reached level 6 2324 | -9/Materials | Upgraded with Weapon slot (x1) 2406 | -9/Materials | Discovered new exit (range 6) 2539 | -9/Materials | Discovered new exit (range 14) 2715 | -9/Materials | Reached level 7 2766 | -9/Materials | Upgraded with Power slot (x1) 2766 | -9/Materials | Upgraded with Propulsion slot (x1) 2799 | -9/Materials | First assault squad dispatched 2807 | -9/Materials | Learned Storage emergency access door positions 2809 | -9/Materials | Build established: Hacker-Tank 2838 | -9/Materials | Learned location of Recycling (-9) 2857 | -9/Materials | Learned Materials stockpile data 2886 | -9/Materials | Learned Storage stockpile data 2926 | -9/Materials | Learned Materials emergency access door positions 2983 | -9/Materials | Reached level 8 3420 | -9/Materials | Entered Mines 3421 | -9/Mines | A Derelict revealed a hidden shortcut to a safe place 3422 | -9/Mines | Reached level 9 3455 | -9/Mines | Discovered new exit (range 9) 3493 | -9/Mines | Learned 4 Materials zone layouts 3548 | -9/Mines | Met a Derelict bent on vengeance 3552 | -9/Mines | Discovered new exit (range 8) 3594 | -9/Mines | Build established: Tank 3703 | -9/Mines | Assembled infested the area 3708 | -9/Mines | Assisted by a Guerilla fighting off Assembled 3950 | -9/Mines | Learned Materials trap positions 4086 | -9/Mines | A weapon hastily lodged in a ceiling crevice suddenly fell to the ground 4134 | -9/Mines | Deemed a non-threat by the Exiles lab entrance 4135 | -9/Mines | Discovered new exit (range 5) 4143 | -9/Mines | Entered Exiles 4170 | -9/Exiles | Met 8R-AWN 4186 | -9/Exiles | Met EX-HEX 4214 | -9/Exiles | Met EX-BIN 4228 | -9/Exiles | Aligned with FarCom system 4229 | -9/Exiles | Given EX-Vault access code 4251 | -9/Exiles | Opened EX-Vault 4275 | -9/Exiles | Warned to stay clear of 0b10 Research branches 4301 | -9/Exiles | Met EX-DEC 4308 | -9/Exiles | Learned location of Zion (-7) 4414 | -9/Exiles | Attacked by the Exiles 4606 | -9/Exiles | Destroyed 8R-AWN 4654 | -9/Exiles | Found Prototype Processor 4654 | -9/Exiles | Identified Exp. Targeting Computer 4659 | -9/Exiles | Found Prototype Ballistic Gun 4662 | -9/Exiles | Found Prototype Ballistic Gun 4669 | -9/Exiles | Identified 8R-AWN's Boregun (x2) 4762 | -9/Exiles | Found Cloak of Protection 4764 | -9/Exiles | Found Latent Energy Streamer 4903 | -9/Exiles | Build established: Scavenger-Gunner 4904 | -9/Exiles | Destroyed EX-BIN 4911 | -9/Exiles | Destroyed EX-HEX 4936 | -9/Exiles | Destroyed EX-DEC 5020 | -9/Exiles | Found Prototype Processor 5024 | -9/Exiles | Found Deploy-a-Sentry 5040 | -9/Exiles | Identified Exp. Core Analyzer 5133 | -9/Exiles | Discovered new exit (range 15) 5145 | -9/Exiles | Stole three prototypes: Cloak of Protection, Latent Energy Streamer, Deploy-a-Sentry 5145 | -9/Exiles | Entered Mines 5146 | -8/Mines | NK-0LA came to Exiles' defense 5198 | -8/Mines | Destroyed NK-0LA 5215 | -8/Mines | Found Prototype Device 5215 | -8/Mines | Identified Thermal Barrier 5220 | -8/Mines | Found Prototype Device 5220 | -8/Mines | Identified Adv. EM Shield 5374 | -8/Mines | Reached level 10 5400 | -8/Mines | Upgraded with Utility slot (x1) 5479 | -8/Mines | Discovered new exit (range 10) 5517 | -8/Mines | Discovered new exit (range 9) 5526 | -8/Mines | Entered Materials 5527 | -8/Materials | Identified exit to Factory 5528 | -8/Materials | Loaded intel: 18 trap records 5528 | -8/Materials | Reached level 11 6019 | -8/Materials | Reached level 12 6048 | -8/Materials | Upgraded with Utility slot (x1) 6209 | -8/Materials | Self-destructed Last Messages --------------- >>Trojan(Botnet) Trojan loaded successfully. Testing... Terminal linked with 3 systems. Awaiting botnet instructions. 06200_ HV Slug penetrates Wall. 06200_ HV Slug penetrates W-25 Informer. 06200_ HV Slug penetrates Door. 06200_ K-01 Serf destroyed. 06203_ HV Slug penetrates Wall. 06203_ HV Slug penetrates W-25 Informer. 06203_ W-25 Informer suffers critical hit (Destroy). 06203_ Destroyed Imp. Hover Unit. 06203_ HV Slug penetrates Wall. 06204_ U-05 Engineer builds a Wall. 06205_ HV Slug penetrates Wall. 06207_ HV Slug penetrates Earth. 06208_ K-01 Serf collects debris. 06208_ U-05 Engineer builds a Wall. Map ----- +----------------------------------------------------+ | ??# #?# + """ #[!![= # ##?# *# | | ?##+###+#### * ###########+#### + | | ?#! ##########??????# ] ## ######## | | ?# #???????????????# ## #??????# | | ?# """ """ #???????????????# ## #??????# | | ?# """ """ #???????????????# =* ## #??????# | | ?# """ """ #???????????????# * ## #??????# | | ?# #???#######?????# ## #??????# | | ?#####+###+##### ##########+#### ######## | | ?????# =[% [ | | ?????# %%= | | ?????# =% %% | | ???#######+##### ##########+######+###### | | ???# ## ##??????# ## ## | | ???# ## #???????# """ ## "" ## | | ???# ## #???????# """ ## "Y ## | | ???# ## #???????# """ ## "" ## | | ???# """ """ #; u#???????# ## ## " | | ???# """ """ ## ##??????# ## ## " | | ???# """ """ ## u################# ## " | | ???############## ########## ## | | ????????????????# ^^ + ###+ | | ????????????????# ^ ###############?# | | ????????????????# #???????????????# | | ????????????????# ^ u ################# | | ??????# """ #??# @^ ^ ; *% k ???????? | | ??????# """ #?## ######### * ???????? | | ??????######+### #????????""????????????? | | ????????# #??????????????????????? | | ????????# < T #??????????????????????? | | ????????# #??????????????????????? | | ????????######## #??????????????????????? | | ???????????????# ####??????????????????????? | | ???????????????# #?????????????????????????? | | ???????????????# #?????????????????????????? | | ???###?????????# #?????????????????????????? | | ?### ####??????# #?????????????????????????? | | ?# #??????# #?????????????????????????? | | ?# "" #??????# #?????????????????????????? | | ?# """ #??????# #######???????????????????? | | ?# S" #??????# # ???????????????????? | | ?# #??????# # """???????????????????? | | ?# """ ####???# # """???????????????????? | | ?# """ ## ##### # """???????????????????? | | ?# """ # ## # ???????????????????? | | ?# # ## # ???????????????????? | | ?# """ # ] ## ##+####???????????????????? | | ?# """ # + #????????????????????? | | ?# """ # ## ^ #????????????????????? | | ?# # ## ^ #????????????????????? | +----------------------------------------------------+ Best States ------------- Heat Dissipation 75 Energy Generation 36 Energy Capacity 460 Matter Stores 300 Matter Capacity 300 Sight Range 17 Robot Scan Range 14 Terrain Scan Density 310 Cloak Strength 5 Armor Coverage 150 Resistance: KI 5 Weapon Cycling 25 Evasion (%) 55 Targeting Accuracy 12 Core Analysis 8 Recoil Reduction 1 Offensive Hacking 15 Defensive Hacking 5 Item Schematics ----------------- ECM Suite | -10/Materials | Hacked Robot Schematics ------------------ M-13 Machinist | -10/Materials | Hacked Fabricated ------------ Nothing Repaired ---------- Nothing Studied --------- Wheel | -9/Materials | Hacked Rocket Launcher | -9/Materials | Hacked Autogun | -9/Materials | Hacked Arm. Wheel | -9/Materials | Hacked Hvy. Assault Rifle | -9/Materials | Hacked Alien Tech Used ----------------- None Achievements -------------- None Challenges ------------ None RPGLIKE | -11 -10 -10 -9 -9 -9 -8 -8 --------- Run | Yrd Mat Min Mat Min Exi Min Mat Levels Raised 11 | . 1 2 4 1 . 1 2 XP Earned 19759 | 3000 2930 1718 7212 635 169 1150 2945 XP Spent 19495 | 2745 1625 3100 5790 1710 . 800 3725 Upgrades 57 | 9 4 8 22 4 . 1 9 Power Slot 1 | . . . 1 . . . . Propulsion Slot 1 | . . . 1 . . . . Utility Slot 3 | . 1 . . . . 1 1 Weapon Slot 3 | 1 . 1 1 . . . . Core Integrity 18 | 1 1 2 14 . . . . Heat Dissipation 4 | 2 1 . . 1 . . . Energy Generation 1 | . . . . 1 . . . Mass Support 1 | . . 1 . . . . . Inventory Capacity 7 | 3 1 1 1 . . . 1 Sight Range 1 | . . . 1 . . . . Sensor Range 7 | . . . . . . . 7 Terrain Scan Density 3 | . . . 3 . . . . Ranged Accuracy 4 | 1 . 1 . 2 . . . Hack Attack % 1 | 1 . . . . . . . Hack Defense % 1 | . . 1 . . . . . KI Resistance % 1 | . . 1 . . . . . Protomatter Created 1295 | . 398 12 569 7 10 4 295 Integrity Restored 3111 | . 769 66 879 18 482 12 885 Core 2742 | . 709 36 633 8 459 12 885 Parts 369 | . 60 30 246 10 23 . . Protomatter Decayed 273 | . 1 . 260 7 5 . . Game ------ Seed ChargeMappingPulseblaster Manual? 0 Play Time 00:52:56 Cumulative 925.1 hours Start 2026.06.26 @ 23:13:10 End 2026.06.27 @ 00:18:16 Sessions 1 Manual Loads 0 Difficulty Rogue Special Mode Winter2019/RPGLIKE Game No. 258 Rogue 258 Adventurer 0 Explorer 0 Win Type - Total 38 Types 12/7/9/1/2/0/3/1/1/2 Lore% 96 Gallery% 89 Achievement% 86 Wizard Run 0 Options --------- Layout 1 ASCII 0 Keyboard 0 Movement Mouse Keybinds 0 Fullscreen 2 Font 32/SmallcapsGlow Map View 50x35 Zoom Use 0% Tactical HUD 1 Map Filters NONE Filters NONE Steam 1 RUN: 88d8ad00-fa9a-42b5-9953-7392667a1c1d